Cogmind - Beta 14 *** ADVENTURER MODE // 2024.09.19 @ 01:35:55 Player: JD00 Result: Self-destructed Performance ------------- Evolutions (0) 0 Regions Visited (3) 600 Robots Destroyed (26) 130 Value Destroyed (605) 605 Prototype IDs (2) 40 Alien Tech Used (0) 0 Bonus (0) 0 TOTAL SCORE: 1375 Bonus ------- None Cogmind --------- Core Integrity 109/250 Matter 300/300 Energy 290/290 System Corruption 0% Temperature Cool (0) Movement Walking (260) Ox2 Location -7/Recycling Parts ------- > --- POWER (1) -------- Improved Deuterium Engine > --- PROPULSION (2) --- Aluminum Leg Aluminum Leg > --- UTILITY (2) ------ Large Storage Unit ECM Suite > --- WEAPON (2) ------- Subdweller Laser Slug Cannon > --- INVENTORY (15) --- Light Ion Engine Spiked Treads Wheel Compact Wheel Subdweller Monowheel Small Storage Unit Medium Matter Pod (100) Signal Interpreter Tower Shield Corruption Screen EM Pulse Gun Small Laser Particle Gun Light Cannon Peak State ------------ > --- POWER ------------ Improved Deuterium Engine > --- PROPULSION ------- Aluminum Leg Aluminum Leg > --- UTILITY ---------- Large Storage Unit ECM Suite > --- WEAPON ----------- Subdweller Laser Slug Cannon > --- INVENTORY -------- Light Ion Engine Spiked Treads Wheel Compact Wheel Subdweller Monowheel Small Storage Unit Medium Matter Pod Signal Interpreter Tower Shield EM Pulse Gun Small Laser Particle Gun Light Cannon Mining Laser [Rating: 17] Favorites ----------- Power Light Ion Engine Engine Light Ion Engine Propulsion Light Treads Treads Light Treads Leg Aluminum Leg Utility Large Storage Unit Device ECM Suite Storage Large Storage Unit Protection Light Armor Plating Weapon Assault Rifle Energy Gun Subdweller Laser Energy Cannon Beam Cannon Ballistic Gun Assault Rifle Ballistic Cannon Slug Cannon Special Weapon Mining Laser Build | -11 -10 -10 -7 ------- Run | Yrd Mat Sub Rec Slots Evolved . | . . . . Power . | . . . . Propulsion . | . . . . Utility . | . . . . Weapon . | . . . . Parts Attached 35 | 8 13 13 1 Power 4 | 1 1 1 1 Engine 4 | 1 1 1 1 Core . | . . . . Reactor . | . . . . Propulsion 6 | 2 . 4 . Treads 4 | 2 . 2 . Leg 2 | . . 2 . Wheel . | . . . . Hover . | . . . . Flight . | . . . . Utility 5 | 2 2 1 . Device 2 | 1 . 1 . Storage 2 | 1 1 . . Processor . | . . . . Hackware . | . . . . Protection 1 | . 1 . . Artifact . | . . . . Weapon 20 | 3 10 7 . Energy Gun 6 | 1 2 3 . Energy Cannon 1 | . 1 . . Ballistic Gun 6 | 1 4 1 . Ballistic Cannon 1 | . . 1 . Launcher . | . . . . Special Weapon 6 | 1 3 2 . Impact Weapon . | . . . . Slashing Weapon . | . . . . Piercing Weapon . | . . . . Special Melee Weapon . | . . . . Unidentified Prototypes . | . . . . Parts Lost 3 | . 1 2 . Power . | . . . . Propulsion 1 | . . 1 . Utility 2 | . 1 1 . Weapon . | . . . . Highest Loss Streak 1 | . 1 1 . To Critical Strikes 1 | . 1 . . Average Slot Usage (%) 99 | . 100 99 100 Engine 14 | . 14 14 14 Treads 24 | . 28 26 . Leg 3 | . . 1 28 Device 11 | . 9 12 14 Storage 14 | . 14 14 14 Protection 2 | . 4 1 . Energy Gun 11 | . 3 18 14 Energy Cannon 1 | . 2 . . Ballistic Gun 9 | . 19 1 . Ballistic Cannon 2 | . . 2 14 Special Weapon 3 | . 1 5 . Peak Build Rating 17 | 7 8 15 17 Average Rating 9 | 4 7 10 16 On Entrance 7 | . 7 8 14 Naked Turns . | . . . . Heaviest Build 43 | 12 33 36 43 Greatest Support 40 | 40 40 40 20 Greatest Overweight (x) 2 | . . 1 2 Average Overweight (x) . | . . . 1 Largest Inventory Capacity 15 | 8 15 15 15 Average Capacity 13 | 7 12 15 15 Most Carried 15 | 7 15 15 15 Average Carried 12 | 4 10 14 14 Final Capacity 15 | 8 15 15 15 Final Carried 15 | 7 15 15 15 Class Distribution -------------------- 100% | Mutant Dominant Class ---------------- Mutant | -10/Materials Mutant | -10/Subcaves Mutant | -7/Recycling Resources | -11 -10 -10 -7 ----------- Run | Yrd Mat Sub Rec Matter Collected 882 | 286 353 182 61 Remotely . | . . . . Salvage Created 657 | 94 422 98 43 Parts 52 | 7 41 3 1 Haulers Intercepted . | . . . . Recyclers Shooed . | . . . . Parts Field Recycled . | . . . . Retrieved Matter . | . . . . Parts Self-Destructed 4 | . . 4 . Prevented . | . . . . Kills | -11 -10 -10 -7 ------- Run | Yrd Mat Sub Rec Combat Hostiles Destroyed 17 | . 13 3 1 Guns 13 | . 11 2 . Cannons 3 | . 1 1 1 AOE 1 | . 1 . . Classes Destroyed 10 | 2 5 2 1 Worker 1 | . 1 . . Builder 1 | . 1 . . Tunneler 1 | 1 . . . Recycler 1 | 1 . . . Turret 2 | . . 2 . Watcher 3 | . 3 . . Swarmer 7 | . 6 1 . Grunt 7 | . 7 . . Sentry 1 | . . . 1 Subdweller 2 | . . 2 . Best Kill Streak 4 | 1 4 2 1 Combat Bots Only 4 | . 4 1 1 Max Kills in Single Turn 2 | 1 2 1 1 Gunslinging . | . . . . Exploded 1 | . 1 . . Melee . | . . . . Uniques/NPCs Destroyed . | . . . . Combat | -11 -10 -10 -7 -------- Run | Yrd Mat Sub Rec Hostile Shots Fired 167 | . 88 46 33 Missed 52 | . 16 18 18 Damage Taken 890 | . 518 302 70 Core 141 | . 89 40 12 Absorbed by Shields . | . . . . Ignored by Resistances 282 | . 168 89 25 Regen/Repaired (Parts) 15 | . 15 . . Core Remaining (%) 100 | 100 . . . Volleys Fired 105 | 8 59 33 5 Largest 2 | 2 2 2 2 Hottest 140 | 60 120 140 108 Shots Fired 173 | 10 97 56 10 Gun 118 | 10 71 32 5 Cannon 23 | . 9 9 5 Launcher . | . . . . Special 32 | . 17 15 . Kinetic 84 | 2 59 18 5 Thermal 55 | . 26 24 5 Explosive . | . . . . Electromagnetic 34 | 8 12 14 . Robot Hit Streak 22 | 7 19 22 11 Robot Miss Streak 4 | 1 4 2 2 Penetration Max . | . . . . Secondary Targets . | . . . . Shots Hit Robots 109 | 9 56 36 8 Core Hits 39 | 2 26 10 1 Critical Kills 2 | . . 1 1 Critical Parts Destroyed 3 | . . 1 2 Critical Strikes 7 | . . 3 4 Destroy 7 | . . 3 4 Melee Attacks . | . . . . Impact . | . . . . Slashing . | . . . . Piercing . | . . . . Sneak Attacks . | . . . . Combat Hostiles . | . . . . Follow-up Attacks . | . . . . Damage Inflicted 1789 | 119 873 571 226 Guns 1130 | 119 591 340 80 Cannons 417 | . 88 183 146 Explosions 154 | . 154 . . Melee . | . . . . Ramming 16 | . 16 . . Kinetic 941 | 10 493 292 146 Thermal 494 | . 266 148 80 Explosive . | . . . . Electromagnetic 338 | 109 98 131 . Impact . | . . . . Slashing . | . . . . Piercing . | . . . . Highest Corruption . | . . . . Average Corruption . | . . . . Corruption Purged . | . . . . Corruption Blocked . | . . . . Overload Shots . | . . . . Overflow Damage 37 | . 37 . . Projectiles . | . . . . Explosions 37 | . 37 . . Melee . | . . . . Knockbacks . | . . . . Impact . | . . . . Kinetic . | . . . . Secondary . | . . . . Self-Inflicted Damage . | . . . . Shots . | . . . . Rammed 4 | . 4 . . Targets Rammed 5 | . 5 . . Kicked . | . . . . Crushed 1 | . 1 . . Highest Temperature 252 | . 219 14 252 Average Temperature 76 | . 73 6 130 Received Heat Transfer 318 | . 222 84 12 Effects 4 | . 1 . 3 Energy Bleed 2 | . 1 . 1 Interference 2 | . . . 2 Siege Activations . | . . . . Robots Corrupted 1 | 1 . . . Combat Hostiles . | . . . . Parts Fried 1 | . . 1 . Impact Corruptions . | . . . . Robots Melted . | . . . . Combat Hostiles . | . . . . Parts Melted . | . . . . Heat Transferred 710 | . 385 225 100 Parts Sabotaged . | . . . . Parts Stolen . | . . . . Parts Stripped . | . . . . Power Chain Reactions . | . . . . Alert | -11 -10 -10 -7 ------- Run | Yrd Mat Sub Rec Peak Influence 208 | 10 208 . 30 Initial 5 | . 5 . . Average 48 | 6 59 . 22 Maximum Alert Level 1 | . 1 . . Low Security (%) 98 | 100 97 . 100 Level 1 1 | . 2 . . Level 2 . | . . . . Level 3 . | . . . . Level 4 . | . . . . Level 5 . | . . . . High Security . | . . . . Max Security . | . . . . Squads Dispatched 1 | . 1 . . Investigation 1 | . 1 . . Extermination . | . . . . Reinforcement . | . . . . Assault . | . . . . Garrison . | . . . . Intercept . | . . . . Searches Triggered . | . . . . Construction Impeded . | . . . . Haulers Reinforced . | . . . . Active Scanning Responses . | . . . . Cargo Convoy Interrupts . | . . . . Stealth | -11 -10 -10 -7 --------- Run | Yrd Mat Sub Rec Distress Signals 1 | . 1 . . Communications Jammed . | . . . . Distress Signals . | . . . . Times Spotted 59 | . 21 37 1 Peak Tracking Total 4 | . 4 3 1 Tactical Retreats 6 | . 1 5 . Traps | -11 -10 -10 -7 ------- Run | Yrd Mat Sub Rec Traps Triggered . | . . . . Indirectly . | . . . . Trap Hack Attempts . | . . . . Triggered . | . . . . Disarmed . | . . . . Reprogrammed 3 | . 3 . . Reused . | . . . . Traps Extracted . | . . . . Installed . | . . . . Triggered . | . . . . Most Traps Carried 1 | . . 1 . Machines | -11 -10 -10 -7 ---------- Run | Yrd Mat Sub Rec Machines Disabled 3 | . 1 2 . Max in Single Turn 1 | . 1 1 . Machines Repaired . | . . . . Machines Dismantled . | . . . . Machines Sabotaged . | . . . . Overloaded Fab Kills . | . . . . Hacking | -11 -10 -10 -7 --------- Run | Yrd Mat Sub Rec Machines Accessed 10 | . 7 . 3 Terminals 6 | . 4 . 2 Fabricators . | . . . . Repair Stations 1 | . 1 . . Recycling Units 3 | . 2 . 1 Scanalyzers . | . . . . Garrison Access . | . . . . Total Hacks 31 | . 22 . 9 Successful 16 | . 12 . 4 Failed 15 | . 10 . 5 Catastrophic 4 | . 2 . 2 Database Lockouts . | . . . . Manual 12 | . 7 1 4 Terminals 19 | . 13 . 6 Fabricators . | . . . . Repair Stations 2 | . 2 . . Recycling Units 10 | . 7 . 3 Scanalyzers . | . . . . Garrison Access . | . . . . Terminal Hacks 8 | . 6 . 2 Prototype ID Bank 1 | . 1 . . Emergency Access Points 2 | . 2 . . Terminal Index 1 | . . . 1 Reprogram Traps 1 | . 1 . . Maintenance Status 1 | . . . 1 Registered Components 1 | . 1 . . Zone Layout 1 | . 1 . . Fabricator Hacks . | . . . . Repair Station Hacks 2 | . 2 . . Scan Component 1 | . 1 . . Repair 1 | . 1 . . Recycling Unit Hacks 5 | . 3 . 2 Retrieve Matter 3 | . 2 . 1 Retrieve Components 2 | . 1 . 1 Scanalyzer . | . . . . Garrison Access Hacks . | . . . . Unauthorized Hacks 1 | . 1 . . Terminals . | . . . . Fabricators . | . . . . Repair Stations . | . . . . Recycling Units 1 | . 1 . . Reject 1 | . 1 . . Scanalyzers . | . . . . Garrison Access . | . . . . Data Cores Recovered . | . . . . Used . | . . . . Hacking Detections 8 | . 5 . 3 Full Trace Events 4 | . 1 . 3 Feedback Events . | . . . . Feedback Blocked . | . . . . Robot Schematics Acquired . | . . . . Robots Built . | . . . . Authchips . | . . . . Time . | . . . . Total Robot Build Rating . | . . . . Part Schematics Acquired . | . . . . Parts Built . | . . . . Authchips . | . . . . Time . | . . . . Total Part Build Rating . | . . . . Parts Repaired 1 | . 1 . . Time 26 | . 26 . . Parts Recycled . | . . . . Recycled Matter . | . . . . Retrieved Matter . | . . . . Retrieved Components 9 | . 7 . 2 Parts Scanalyzed . | . . . . Part Schematics Acquired . | . . . . Parts Damaged . | . . . . Bothacking | -11 -10 -10 -7 ------------ Run | Yrd Mat Sub Rec Used RIF Installer . | . . . . Robots Hacked . | . . . . Non-combat . | . . . . Combat . | . . . . Robot Hacks Applied . | . . . . Relay Couplers Released . | . . . . Fabnet Peak Effective % . | . . . . Robots Rewired . | . . . . Allies Hacked . | . . . . Hacks Repelled . | . . . . Allies | -11 -10 -10 -7 -------- Run | Yrd Mat Sub Rec Total Allies . | . . . . Largest Group . | . . . . Highest-Rated Group . | . . . . Highest-Rated Ally . | . . . . Total Orders . | . . . . Ally Attacks . | . . . . Total Damage . | . . . . Kills . | . . . . Allies Corrupted . | . . . . Allies Melted . | . . . . Intel | -11 -10 -10 -7 ------- Run | Yrd Mat Sub Rec Robot Analysis Total . | . . . . Derelict Logs Recovered 1 | . . 1 . Drone Launches . | . . . . Drone Recoveries . | . . . . Exploration | -11 -10 -10 -7 ------------- Run | Yrd Mat Sub Rec Turns Passed 2783 | 122 1141 1227 293 Spaces Moved 1317 | 55 521 636 105 Core 2 | 2 . . . Treads 1185 | 53 521 611 . Legs 130 | . . 25 105 Wheels . | . . . . Hover . | . . . . Flight . | . . . . Fastest Speed 50 | 50 160 160 190 Average Speed 168 | 156 160 162 255 Slowest Speed 260 | 160 160 240 260 Overloaded Moves . | . . . . Propulsion Burnouts . | . . . . Robots Hopped . | . . . . Cave-ins Triggered . | . . . . Exploration Rate (%) 31 | 5 56 49 17 Regions Visited 3 Branch Regions 2 Pre-discovered Areas . | . . . . Known Exits Taken . | . . . . Unknown Exits Taken 3 | 1 1 1 . Scrap Searched 4 | . . 4 . Spaces Dug 15 | . 15 . . Terrain Destroyed 34 | . 33 1 . Melee . | . . . . Projectile 17 | . 16 1 . AOE 17 | . 17 . . Terrain Rammed . | . . . . Walls Destroyed . | . . . . Machines Disabled . | . . . . Actions | -11 -10 -10 -7 --------- Run | Yrd Mat Sub Rec Total 1632 | 77 691 744 120 Wait 135 | . 80 49 6 Move 1314 | 54 520 635 105 Hop . | . . . . Pick Up 25 | 7 11 6 1 Fast Attach 9 | 7 . 2 . Attach 3 | . 2 1 . Detach 1 | . 1 . . Swap 23 | 1 11 10 1 Drop 12 | . 2 8 2 Fire 105 | 8 59 33 5 Melee . | . . . . Ram . | . . . . Kick . | . . . . Crush 5 | . 5 . . Escape Stasis . | . . . . Rewire . | . . . . Trap . | . . . . Miscellaneous . | . . . . Route ------- -11/Scrapyard -10/Materials (discovered 4 exits: [*Mat x2] / [*Min] / *Sub) -10/Subcaves -7/Recycling History --------- Turn | Location | Event 43 | -11/Scrapyard | Discovered new exit (range 16) 123 | -11/Scrapyard | Entered Materials 294 | -10/Materials | Repaired Mining Laser 315 | -10/Materials | Build established: Mutant 548 | -10/Materials | Discovered new exit (range 14) 858 | -10/Materials | Discovered new exit (range 11) 1045 | -10/Materials | Discovered new exit (range 7) 1242 | -10/Materials | Discovered new exit (range 12) 1264 | -10/Materials | Entered Subcaves 1411 | -10/Subcaves | Shifting Twisted Machinery released Shrapnel Trap 1676 | -10/Subcaves | Disturbed a concealed Subdweller 1951 | -10/Subcaves | Shifting Twisted Machinery released Slug Cannon 2010 | -10/Subcaves | Shifting Twisted Machinery released Sub. Laser 2122 | -10/Subcaves | Visited 4L-MR0's lab 2142 | -10/Subcaves | Found Prototype Protection 2367 | -10/Subcaves | Core integrity fell below 50% 2380 | -10/Subcaves | Discovered new exit (range 16) 2491 | -10/Subcaves | Entered Recycling 2784 | -7/Recycling | Self-destructed Last Messages --------------- Connecting with Terminal... Current location identified: Recycling >>Index(Terminals) Found 6 terminals. Downloaded coordinate data. Dropped Mining Laser. Acquired Corruption Screen. R-06 Scavenger collects Mining Laser. Connecting with Recycling Unit... >>Retrieve(Components) Retrieving 2 components... Imp. Medium Armor Plating Imp. Carbon-fiber Leg Connecting with Terminal... >>Enumerate(Maintenance) Found 23 registered maintenance bots. 6 Builders 17 Recyclers Downloaded coordinate data. Acquired 6 matter. Map ----- +----------------------------------------------------+ | ????????????????????????????? | | ????????????????????????????? | | ????????????????????????????? | | ????????????????????????????? | | ????????????????????????????? | | ????????????????????????????? | | ????????????????????????????? | | ????????????????????????????? | | ????????????????????????????? | | ????????????????????????????? | | ????????????????????????????? | | ????? ]???????????????????? | | ????? ]???????????????????? | | ????? #???????????????????? | | ????# #???????????????????? | | ????# #???????????????????? | | ????# #???????????????????? | | ????# #???????????????????? | | ????" #???????????????????? | | ???? #???????????????????? | | ????" #???????????????????? | | ????# +???????????????????? | | ??### #???????????????????? | | ??#]] #???????????????????? | | ??#] #???????????????????? | | ??#]@ #???????????????????? | | ??### #???????????????????? | | ????# #???????????????????? | | ????# ###?????????????????? | | ????# #?????????????????? | | ????# %%#?????????????????? | | ????# %%#?????????????????? | | ????# ###############?????? | | ????# ## #?????? | | ????# ## = ! #?????? | | ????# ## = #?????? | | ???## ## ! #?????? | | ???# # #?????? | | ???# # ] #?????? | | ???# + ] #?????? | | ???# # % #?????? | | ???# # = ! #?????? | | ???## ## #?????? | | ???## T# ! #?????? | | ???# ## ! #???### | | ???## ###########/###???#"" | | ????# #???????# #####"Y | | ????# #???????# | | ????# #???????# ! | | ????# #???????# | +----------------------------------------------------+ Best States ------------- Heat Dissipation 25 Energy Generation 16 Energy Capacity 290 Matter Stores 300 Matter Capacity 300 Sight Range 16 Terrain Scan Density 10 ECM Strength 1 Armor Coverage 150 Resistance: KI 20 Resistance: TH 20 Resistance: EX 20 Resistance: EM 20 Resistance: I 20 Resistance: S 20 Resistance: P 20 Evasion (%) 40 Recoil Reduction 2 Offensive Hacking 10 Item Schematics ----------------- None Robot Schematics ------------------ None Fabricated ------------ Nothing Alien Tech Used ----------------- None Achievements -------------- None Challenges ------------ None Game ------ Seed NovaChainReplica Manual? 0 Play Time 00:50:34 Cumulative 8.1 hours Start 2024.09.19 @ 00:35:23 End 2024.09.19 @ 01:35:55 Sessions 1 Manual Loads 0 Difficulty Adventurer Special Mode None Game No. 11 Rogue 0 Adventurer 11 Explorer 0 Win Type - Total 0 Types 0/0/0/0/0/0/0/0/0 Lore% 11 Gallery% 10 Achievement% 14 Wizard Run 0 Options --------- Layout 1 ASCII 1 Keyboard 1 Movement Arrows Keybinds 0 Fullscreen 2 Font 24/Smallcaps Map View 50x35 Zoom Use 0% Tactical HUD 0 Map Filters NONE Filters NONE Steam 1 RUN: daece272-c7e8-4409-ba24-a78569d6e656